bitfinex/quotes_ETHUSD_20250611
["timestamp","ask_amount","ask_price","bid_price","bid_amount"]
[1749659054727,0.1752,2853.6,2853.4,8.467]
[1749659054927,0.1752,2853.6,2853.5,10.8056]
[1749659055124,0.8155,2854.4,2853.5,15.4756]
[1749659055317,0.8155,2854.4,2853.7,10.0]
[1749659055514,0.8155,2854.4,2853.7,13.797]
[1749659055701,0.1752,2853.8,2853.7,13.797]
[1749659056219,0.1752,2853.8,2853.7,26.24777169]
[1749659056549,0.7574,2855.1,2853.8,0.7824]
[1749659056729,0.1744,2854.6,2854.2,10.0]
[1749659056900,0.1744,2854.6,2854.3,3.796]
[1749659057497,0.7574,2855.1,2854.3,3.796]
[1749659057899,0.7574,2855.1,2854.2,3.796]
[1749659058539,0.7574,2855.1,2854.3,0.00165295]
[1749659059737,0.1744,2854.3,2854.0,10.0]
[1749659059930,0.7574,2855.1,2854.0,14.67]
[1749659060521,0.7574,2855.1,2854.1,0.7646]
[1749659060846,1.0,2855.4,2854.4,10.0]
[1749659060847,0.1744,2854.6,2854.4,10.0]
[1749659061048,0.1744,2854.6,2854.5,3.796]
[1749659061219,0.1744,2854.6,2854.2,8.466]
[1749659061425,0.7929,2854.8,2854.2,4.67]
[1749659061805,0.34715365,2855.2,2854.3,5.4842]
[1749659061806,0.8199,2855.2,2854.3,5.4842]
[1749659062007,0.1744,2854.6,2854.4,10.0]
[1749659062207,0.1744,2854.6,2854.5,3.796]
[1749659063252,0.8199,2855.2,2854.4,10.0]
[1749659063459,0.1744,2854.6,2854.4,13.795]
[1749659063953,1.00189,2855.2,2854.4,13.795]
[1749659064122,1.00189,2855.2,2854.4,10.0]
[1749659064449,1.00189,2855.2,2854.4,13.795]
[1749659064612,0.55,2855.1,2854.3,4.67]
[1749659064948,1.35166687,2855.2,2853.6,9.01397169]
[1749659064949,0.9669,2854.3,2853.8,4.67]
[1749659065134,0.7925,2854.3,2854.0,10.0]
[1749659065861,0.7925,2854.9,2854.0,10.0]
[1749659066059,0.7925,2854.9,2854.0,14.67]
[1749659066913,0.7925,2854.9,2854.0,4.67]
[1749659068331,0.7925,2854.9,2854.0,14.67]
[1749659068647,0.99009,2855.2,2854.2,0.7549]
[1749659068957,0.1744,2854.6,2854.3,3.795]
[1749659069157,0.1744,2854.6,2854.2,0.7549]
[1749659069342,0.1744,2854.6,2854.3,3.795]
[1749659069869,0.99009,2855.2,2854.3,3.795]
[1749659070029,0.1744,2854.4,2854.3,13.795]
[1749659070458,0.1744,2854.4,2854.2,3.795]
[1749659070644,0.1744,2854.1,2854.0,8.465]
[1749659070843,0.1744,2854.1,2854.0,18.465]
[1749659072530,0.1744,2854.1,2854.0,13.795]
[1749659073895,0.1744,2854.1,2854.0,10.0]
[1749659074331,0.1744,2854.1,2853.6,0.8055]
[1749659074538,0.1752,2853.9,2853.8,10.0]
[1749659074983,0.1752,2853.9,2852.8,2.78873941]
[1749659075136,0.7698,2854.2,2852.9,0.7583]
[1749659075343,0.1752,2853.2,2853.0,3.794]
[1749659075752,0.1752,2853.2,2852.9,0.7583]
[1749659075961,0.1752,2853.2,2853.0,3.794]
[1749659076476,0.1752,2853.2,2853.1,10.0]
[1749659078340,0.1752,2853.2,2853.1,13.794]
[1749659078570,0.1752,2853.2,2852.8,10.0]
[1749659078773,0.77,2853.6,2852.3,0.974]
[1749659078983,0.1752,2852.8,2852.4,3.794]
[1749659079195,0.1752,2852.8,2852.3,1.36819724]
[1749659079500,0.1752,2852.8,2852.6,10.0]
[1749659081387,0.1752,2852.8,2852.3,0.974]
[1749659081547,0.7538,2853.0,2852.3,0.7988]
[1749659081548,0.1752,2852.5,2852.3,0.7988]
[1749659081746,0.1752,2852.5,2852.4,13.794]
[1749659082174,0.1752,2852.8,2852.5,0.7896]
[1749659082342,0.1752,2852.8,2852.5,10.7896]
[1749659082557,0.8273,2853.7,2852.6,0.1752]
[1749659082558,0.1752,2853.1,2852.6,0.1752]
[1749659082771,0.1752,2853.1,2852.8,10.0]
[1749659083845,0.1752,2853.1,2852.9,3.794]
[1749659084150,0.1752,2853.1,2853.0,10.0]
[1749659085490,0.1752,2853.1,2852.6,0.1752]
[1749659085788,0.1752,2853.1,2852.8,10.0]
[1749659085984,0.8273,2853.7,2852.5,0.7896]
[1749659086198,0.1752,2852.7,2852.6,10.0]
[1749659086349,0.8223,2853.0,2852.7,10.0]
[1749659086694,0.8223,2853.0,2852.6,3.794]
[1749659087545,0.1752,2852.6,2852.5,3.794]
[1749659089252,0.1752,2852.6,2852.2,0.1752]
[1749659089452,0.1752,2852.6,2852.4,10.0]
[1749659089672,0.8223,2853.0,2852.3,10.0]
[1749659089894,0.9888,2852.4,2852.1,4.67]
[1749659090882,0.8136,2852.4,2852.1,4.67]
[1749659092251,11.28545395,2853.4,2852.1,4.67]
[1749659092252,0.7845,2852.9,2852.2,10.0]
[1749659092589,0.1752,2852.3,2852.2,13.794]
[1749659092956,0.1752,2852.7,2852.2,3.9692]
[1749659093369,0.795,2853.3,2852.1,0.7672]
[1749659093570,0.1752,2852.5,2852.3,10.0]
[1749659094053,0.1752,2852.8,2852.3,10.1752]
[1749659094457,0.1752,2852.8,2852.3,17.95597169]
[1749659094894,0.1752,2852.8,2852.3,10.1752]
[1749659096581,0.1752,2852.8,2852.3,14.8452]
[1749659096973,0.1752,2852.5,2852.4,13.794]
[1749659097795,0.795,2853.3,2852.5,10.0]
[1749659098002,0.1752,2853.0,2852.6,0.7643]
[1749659098185,0.7677,2853.6,2852.9,7.78077169]
[1749659098385,0.7677,2854.1,2853.1,10.0]
[1749659098587,0.1752,2853.6,2853.2,0.7643]
[1749659098775,0.1752,2853.6,2853.4,10.0]
[1749659101269,0.1752,2853.6,2853.2,0.7643]
[1749659101473,0.7677,2854.1,2853.4,10.0]
[1749659102110,0.1752,2853.4,2853.3,3.793]
[1749659102269,0.1752,2853.3,2852.6,6.7309]
[1749659102478,0.1752,2852.9,2852.6,1.057]
[1749659102733,0.7502,2853.5,2852.7,3.793]
[1749659102880,0.1752,2852.9,2852.7,3.793]
[1749659103881,0.1752,2852.9,2852.8,3.793]
[1749659105525,0.1752,2852.9,2852.8,14.1723]
[1749659105948,0.8003,2854.0,2852.8,19.6388]
[1749659106245,0.8003,2854.0,2853.0,7.78077169]
[1749659106444,0.8003,2854.0,2853.3,0.7965]
[1749659106445,0.1752,2853.6,2853.3,0.7965]
[1749659106746,0.1752,2853.6,2853.4,3.792]
[1749659107057,0.1744,2854.0,2853.5,15.24226809]
[1749659107810,0.7604,2854.4,2853.7,10.0]
[1749659108042,0.1744,2854.2,2853.8,3.792]
[1749659108245,0.1744,2854.2,2853.9,10.0]
[1749659108457,0.7816,2854.7,2854.0,0.8076]
[1749659108622,0.1744,2854.4,2854.2,10.0]
[1749659109845,0.1744,2854.5,2854.3,3.792]
[1749659110054,0.1744,2854.5,2854.4,3.792]
[1749659110610,0.1744,2854.5,2853.8,0.3793]
[1749659110854,0.1744,2854.2,2854.0,10.0]
[1749659111073,0.1744,2854.2,2853.7,0.9884]
[1749659111290,0.8115,2854.4,2853.3,0.8132]
[1749659111453,0.1752,2853.8,2853.4,3.791]
[1749659112073,0.8115,2854.4,2853.4,3.791]
[1749659112377,0.8115,2854.9,2853.7,11.3632]
[1749659112583,0.1744,2854.3,2853.9,10.0]
[1749659112797,0.8115,2854.2,2853.8,0.1752]
[1749659113093,0.8115,2854.2,2853.4,3.791]
[1749659113094,0.1752,2853.8,2853.4,3.791]
[1749659113237,0.8115,2854.2,2853.2,0.1752]
[1749659113433,0.1752,2853.5,2853.2,3.9662]
[1749659113794,0.8115,2854.2,2853.3,10.0]
[1749659115685,0.1752,2853.6,2853.3,10.0]
[1749659118189,0.1752,2853.6,2853.1,0.1752]
[1749659118524,0.8115,2854.2,2853.2,3.79]
[1749659118720,0.1752,2853.4,2852.9,10.1752]
[1749659118889,0.1752,2853.4,2852.9,0.1752]
[1749659119092,0.1752,2853.0,2852.9,3.79]
[1749659119494,0.1752,2853.0,2852.9,13.79]
[1749659121061,0.819,2853.5,2853.0,10.0]
[1749659121262,0.1752,2853.2,2853.0,3.79]
[1749659121758,0.819,2853.5,2853.0,3.79]
[1749659121925,0.1752,2853.0,2852.6,1.057]
[1749659122112,0.1752,2852.6,2852.1,5.4488]
[1749659122314,0.1752,2852.6,2852.1,0.954]
[1749659122529,0.1752,2852.5,2852.3,10.0]
[1749659122739,0.1752,2852.5,2852.1,0.7788]
[1749659123066,0.1752,2852.5,2852.0,0.1752]
[1749659123067,0.1752,2852.5,2852.3,10.0]
[1749659124351,0.1752,2852.5,2852.4,8.33077169]
[1749659124551,7.78077169,2854.5,2852.5,0.55]
[1749659124552,0.7915,2853.5,2852.5,0.55]
[1749659124754,0.1752,2853.3,2853.2,10.0]
[1749659125052,0.1752,2853.3,2853.2,13.79]
[1749659126179,0.1752,2853.3,2853.2,3.79]
[1749659128553,0.1752,2853.3,2853.0,4.67]
[1749659128554,0.9809,2853.3,2853.0,4.67]
[1749659128758,0.9809,2853.3,2852.4,7.96]
[1749659128759,0.1752,2853.1,2852.4,4.67]
[1749659128955,0.1752,2852.8,2852.5,3.79]
[1749659129265,3.84559426,2854.2,2852.8,10.0]
[1749659129266,0.8057,2853.6,2852.8,10.0]
[1749659129601,0.1752,2853.1,2853.0,10.0]
[1749659131099,0.1752,2853.1,2852.8,4.67]
[1749659131270,0.8057,2853.6,2852.8,4.67]
[1749659131472,4.05446047,2853.6,2851.9,5.4694]
[1749659131679,0.1752,2852.3,2852.0,3.789]
[1749659132575,0.8101,2852.5,2851.9,0.7994]
[1749659132779,0.1752,2852.1,2852.0,3.789]
[1749659132987,0.1752,2852.1,2852.0,13.789]
[1749659133589,1.18352322,2853.5,2852.1,10.0]
[1749659133798,1.18352322,2853.5,2852.0,13.789]
[1749659133799,0.1752,2852.5,2852.0,18.6342]
[1749659133990,0.1752,2852.5,2852.2,0.7779]
[1749659134171,0.8324,2853.4,2852.3,11.56977169]
[1749659134373,0.8324,2853.4,2852.7,7.78077169]
[1749659134580,0.1752,2853.1,2852.9,10.0]
[1749659135869,0.1752,2853.1,2852.8,3.789]
[1749659136126,0.1752,2852.8,2852.7,3.789]
[1749659136437,0.8324,2853.4,2852.8,10.0]
[1749659136638,0.8328,2854.1,2852.8,10.7645]
[1749659136854,0.22296893,2854.0,2853.2,10.0]
[1749659137001,0.8328,2854.1,2853.3,3.789]
[1749659137198,0.8328,2854.1,2853.5,7.78077169]
[1749659137428,0.8328,2854.1,2853.6,13.789]
[1749659137612,1.055,2854.9,2853.6,13.789]
[1749659137613,0.8287,2854.7,2853.6,13.789]
[1749659137813,0.8287,2854.7,2853.7,3.789]
[1749659138002,0.8287,2854.7,2853.8,3.789]
[1749659141153,0.8287,2854.7,2853.6,10.0]
[1749659142365,0.8287,2854.7,2853.7,0.7849]
[1749659142716,0.8287,2854.7,2853.8,3.788]
[1749659142960,0.8287,2854.7,2853.4,0.7849]
[1749659143113,0.8287,2854.7,2853.5,3.788]
[1749659144117,0.8287,2854.7,2853.6,3.788]
[1749659144817,0.8287,2854.7,2853.2,17.78077169]
[1749659145023,0.8287,2854.7,2853.4,10.0]
[1749659145462,0.8287,2854.7,2853.5,0.7849]
[1749659146442,0.1752,2853.8,2853.5,0.7849]
[1749659146752,0.1752,2853.8,2853.6,4.67]
[1749659150231,0.7788,2853.7,2853.6,4.67]
[1749659150427,0.7788,2853.7,2853.0,3.9403125]
[1749659151045,0.1752,2853.0,2852.7,7.7273125]
[1749659151376,0.7788,2853.6,2852.9,10.0]
[1749659151774,0.7788,2853.6,2852.8,7.7273125]
[1749659152352,0.7788,2853.6,2852.9,10.0]
[1749659152835,0.1752,2853.2,2852.9,10.8067]
[1749659153069,0.8042,2854.4,2853.3,10.28037074]
[1749659153234,0.8042,2854.4,2853.4,7.7273125]
[1749659153880,0.55,2854.5,2853.4,3.9403125]
[1749659154170,0.8042,2854.2,2853.4,7.7273125]
[1749659156938,0.8042,2854.2,2853.4,3.787]
[1749659157161,0.8042,2854.2,2853.1,10.0]
[1749659157353,0.7592,2853.4,2853.2,3.787]
[1749659157552,0.7592,2853.4,2853.3,3.9403125]
[1749659157848,0.83,2854.3,2853.3,3.9403125]
[1749659158054,0.83,2854.1,2853.3,3.9403125]
[1749659158272,0.83,2854.1,2853.5,10.0]
[1749659158469,0.1752,2853.6,2853.5,10.0]
[1749659158710,0.1752,2853.6,2853.5,13.9403125]
[1749659159892,0.1752,2853.6,2853.5,17.7273125]
[1749659160951,0.1752,2853.8,2853.5,17.7273125]
[1749659161365,0.8156,2854.4,2853.5,17.7273125]
[1749659161546,0.1752,2853.8,2853.6,7.7263125]
[1749659161880,0.8156,2854.4,2853.7,7.7263125]
[1749659162070,0.8156,2854.4,2853.7,3.786]
[1749659162581,0.1752,2853.7,2853.4,10.0]
[1749659162743,0.8146,2853.8,2853.3,3.786]
[1749659162943,0.1752,2853.4,2853.2,3.9403125]
[1749659163202,0.8146,2853.8,2853.2,3.9403125]
[1749659164483,0.8146,2853.8,2852.8,10.0]
[1749659164683,0.8146,2853.8,2851.6,7.96]
[1749659164684,0.9734,2852.9,2852.4,3.9403125]
[1749659164890,0.7982,2852.9,2852.5,3.786]
[1749659165099,0.1752,2852.5,2852.3,10.7914]
[1749659165309,0.1752,2852.4,2852.3,14.5774]
[1749659165465,0.1752,2852.4,2852.3,13.786]
[1749659165791,0.1752,2852.4,2852.3,3.786]
[1749659165976,0.1752,2852.4,2852.2,10.0]
[1749659166177,0.1752,2852.4,2852.2,13.786]
[1749659166381,0.1752,2852.4,2852.2,3.786]
[1749659166548,0.1752,2852.4,2852.1,3.786]
[1749659166750,0.7982,2852.9,2852.1,3.786]
[1749659167464,0.1752,2852.1,2851.9,1.053]
[1749659167645,0.1752,2852.1,2851.8,3.9403125]
[1749659167646,0.8027,2852.3,2851.4,0.8321]
[1749659167848,0.1752,2851.7,2851.4,0.8321]
[1749659168084,0.8027,2852.3,2851.2,1.053]
[1749659168243,0.8027,2851.6,2850.7,0.8321]
[1749659168448,0.1752,2851.2,2850.8,3.786]
[1749659168648,0.1752,2851.2,2850.9,10.0]
[1749659168888,0.1752,2851.2,2851.0,3.786]
[1749659169097,0.1752,2851.2,2850.7,1.0073]
[1749659169098,0.1752,2851.2,2850.9,3.786]
[1749659170047,0.1752,2851.2,2850.7,1.0073]
[1749659170248,0.8027,2851.6,2850.4,1.8506]
[1749659170490,0.8027,2851.6,2850.5,3.786]
[1749659170491,0.1752,2850.6,2850.5,3.786]
[1749659170659,0.1752,2850.6,2850.5,13.786]
[1749659171262,0.8027,2851.6,2850.6,10.0]
[1749659171467,0.1752,2850.9,2850.5,3.786]
[1749659171911,0.1752,2851.0,2850.5,3.9612]
[1749659172916,0.8027,2851.6,2850.6,10.0]
[1749659173077,0.1752,2850.5,2850.4,0.7976]
[1749659173265,0.1752,2850.5,2850.4,13.786]
[1749659175011,0.1752,2850.5,2850.4,10.0]
[1749659175507,0.1752,2850.5,2850.4,13.787]
[1749659176305,0.1752,2850.8,2850.4,3.787]
[1749659176505,0.1752,2851.1,2850.9,10.0]
[1749659176665,0.1752,2851.1,2851.0,13.786]
[1749659177297,0.7957,2851.7,2851.0,13.786]
[1749659177474,0.1752,2851.7,2851.3,10.0]
[1749659177782,0.1752,2851.7,2851.1,10.7719]
[1749659177981,0.1752,2851.7,2851.1,0.7719]
[1749659178196,0.1752,2851.3,2851.2,3.787]
[1749659178366,0.1752,2851.3,2851.2,13.787]
[1749659181071,0.1752,2851.3,2851.2,10.0]
[1749659181371,0.1752,2851.3,2851.2,13.786]
[1749659181812,0.9693,2851.3,2851.2,10.0]
[1749659182014,0.9693,2851.3,2850.9,3.786]
[1749659182183,1.836,2852.1,2851.0,10.0]
[1749659182372,1.836,2852.1,2851.1,3.786]
[1749659182991,0.782,2852.1,2851.1,3.786]
[1749659183504,0.1752,2851.2,2851.1,7.7263125]
[1749659184227,0.1752,2851.2,2851.1,3.9403125]
[1749659185620,0.7774,2851.1,2850.0,4.9923125]
[1749659185898,0.7774,2851.1,2850.0,10.0]
[1749659186124,0.7774,2851.1,2850.8,10.29642718]
[1749659186291,0.7774,2851.1,2850.5,10.0]
[1749659187334,10.29642718,2852.3,2850.6,10.29642718]
[1749659187335,0.1752,2850.8,2850.6,10.29642718]
[1749659187538,0.1752,2850.8,2850.7,3.786]
[1749659188087,0.1752,2850.8,2850.7,13.786]
[1749659190645,0.8171,2851.9,2850.9,0.7705]
[1749659190946,0.1752,2851.0,2850.9,0.7705]
[1749659191229,0.1752,2851.3,2851.0,10.29642718]
[1749659191602,0.1752,2851.3,2851.0,10.0]
[1749659192148,0.1752,2851.3,2851.1,3.786]
[1749659192644,0.1752,2851.3,2851.2,10.0]
[1749659193859,0.1752,2851.6,2851.2,10.0]
[1749659194037,0.1752,2851.6,2851.4,10.0]
[1749659194330,0.1752,2851.6,2851.2,10.0]
[1749659194507,0.8171,2851.9,2850.6,10.7799]
[1749659194709,0.8261,2851.3,2850.7,3.785]
[1749659195043,0.8261,2851.3,2850.8,10.0]
[1749659196009,0.1752,2850.9,2850.8,10.0]
[1749659196520,0.1752,2850.9,2850.8,21.11182718]
[1749659196703,0.1752,2850.9,2850.8,10.8154]
[1749659196903,0.1752,2850.9,2850.6,10.0]
[1749659197135,0.1752,2850.9,2850.8,3.785]
[1749659199146,0.76,2852.2,2850.9,10.8033]
[1749659199333,0.76,2852.2,2851.4,10.0]
[1749659199519,0.1752,2851.7,2851.5,3.785]
[1749659201147,0.1752,2851.7,2851.5,4.5421]
[1749659201377,0.1752,2851.9,2851.5,4.5421]
[1749659202513,0.7825,2852.8,2851.6,20.29642718]
[1749659202713,0.1752,2852.4,2852.1,0.8006]
[1749659202942,0.7825,2853.1,2852.4,10.0]
[1749659203144,0.1752,2852.7,2852.5,3.784]
[1749659203655,0.7832,2853.5,2852.7,10.8236]
[1749659203815,1.8352,2853.8,2853.1,10.0]
[1749659204156,0.1752,2853.3,2853.1,3.783]
[1749659204317,0.7832,2853.8,2853.1,3.783]
[1749659204514,0.1752,2853.5,2853.1,3.783]
[1749659205853,0.1752,2853.5,2853.0,0.1752]
[1749659206169,0.1752,2853.0,2852.9,13.783]
[1749659209376,0.1752,2853.0,2852.9,13.782]
[1749659210485,0.1752,2853.0,2852.5,0.1752]
[1749659210783,0.1752,2852.5,2852.3,3.781]
[1749659211332,0.1752,2852.5,2852.4,10.0]
[1749659211933,0.8291,2853.4,2852.4,10.0]
[1749659212173,0.1752,2852.9,2852.7,0.7614]
[1749659212338,0.1752,2853.2,2852.9,10.0]
[1749659212539,1.051,2854.4,2853.1,10.767]
[1749659212540,0.1752,2853.5,2853.1,10.767]
[1749659212742,0.1752,2853.5,2853.2,3.781]
[1749659213843,0.1752,2853.5,2853.3,10.0]
[1749659214485,0.1752,2853.5,2853.4,13.781]
[1749659217998,0.1752,2853.5,2853.4,10.0]
[1749659218292,8.982019,2853.5,2853.4,10.0]
[1749659219079,10.6597209,2853.5,2853.0,3.78]
[1749659219249,10.4845209,2853.5,2853.0,3.78]
[1749659219452,0.1752,2853.1,2853.0,3.78]
[1749659220188,8.806819,2853.5,2853.0,10.378]
[1749659220354,8.806819,2853.5,2853.2,10.0]
[1749659220555,8.806819,2853.5,2853.4,10.0]
[1749659221482,8.806819,2853.5,2853.4,10.1752]
[1749659221784,8.806819,2853.5,2853.4,10.57356809]
[1749659222954,8.806819,2853.5,2853.4,11.94696809]
[1749659223339,8.806819,2853.5,2853.4,6.22496809]
[1749659223544,8.806819,2853.5,2853.4,3.9542]
[1749659223756,8.806819,2853.5,2853.4,3.779]
[1749659224354,8.806819,2853.5,2853.4,13.779]
[1749659224586,8.806819,2853.5,2853.4,10.0]
[1749659224769,8.982019,2853.5,2853.1,3.778]
[1749659224940,0.1752,2853.3,2853.1,3.778]
[1749659225148,0.7514,2853.4,2853.1,3.778]
[1749659225447,0.1752,2853.1,2852.7,1.049]
[1749659225683,0.1752,2853.1,2852.9,10.0]
[1749659225989,0.1752,2853.1,2853.0,13.778]
[1749659226185,0.1752,2853.1,2852.9,3.778]
[1749659226558,0.1752,2853.4,2853.0,10.7547]
[1749659226889,0.1752,2853.4,2853.0,10.75364857]
[1749659227250,0.1752,2853.4,2853.1,7.77929453]
[1749659227450,8.806819,2853.5,2853.1,11.73249453]
[1749659228301,8.806819,2853.5,2853.2,3.778]
[1749659228450,0.1752,2853.4,2853.2,3.778]
[1749659228857,0.1752,2853.4,2853.3,10.0]
[1749659229081,8.806819,2853.5,2853.3,10.7575]
[1749659229282,8.806819,2853.5,2853.4,13.778]
[1749659230264,8.806819,2853.5,2853.4,10.0]
[1749659230795,8.806819,2853.5,2853.4,13.777]
[1749659234517,8.806819,2853.5,2853.4,15.1209]
[1749659234718,8.806819,2853.5,2853.4,15.2961]
[1749659235579,7.11446962,2853.5,2853.4,15.2961]
[1749659235775,1.7554,2855.4,2853.9,10.55]
[1749659236013,1.7554,2855.4,2854.5,10.0]
[1749659236218,1.7554,2855.4,2854.7,10.0]
[1749659236522,1.93094,2855.4,2854.8,3.776]
[1749659236825,0.1744,2855.0,2854.8,3.776]
[1749659237791,1.0,2855.4,2854.9,10.0]
[1749659237994,1.0,2855.4,2855.3,11.3535]
[1749659238199,1.0,2855.4,2855.3,16.3519]
[1749659238381,1.0,2855.4,2855.3,15.8019]
[1749659238575,1.0,2855.4,2855.3,10.9779]
[1749659238923,1.0,2855.4,2855.3,10.0]
[1749659241104,1.0,2855.4,2855.3,3.774]
[1749659241422,0.1744,2855.3,2855.2,13.774]
[1749659241945,1.0,2855.4,2855.2,14.53]
[1749659242103,1.0,2855.4,2855.3,0.55]
[1749659242703,1.0,2855.4,2855.3,10.55]
[1749659243302,1.0,2855.4,2855.3,22.11305222]
[1749659243812,1.0,2855.4,2855.3,22.91145222]
[1749659245134,0.74330001,2855.4,2855.3,22.91145222]
[1749659245336,0.34254487,2856.6,2855.3,22.91145222]
[1749659245507,0.827,2856.9,2856.1,12.36145222]
[1749659245842,0.827,2856.9,2856.4,11.56305222]
[1749659246042,0.04,2857.9,2856.7,11.56305222]
[1749659246043,0.35025662,2857.1,2856.7,11.56305222]
[1749659246218,0.8243,2857.2,2856.7,11.56305222]
[1749659247743,0.7983,2857.8,2857.0,11.56305222]
[1749659248061,0.7983,2857.8,2857.3,11.56305222]
[1749659249129,0.8011,2857.7,2856.3,0.7643]
[1749659249329,0.8011,2857.7,2856.3,10.7643]
[1749659249735,0.8011,2857.7,2856.6,10.0]
[1749659250055,0.3565983,2857.8,2856.6,10.0]
[1749659250056,0.04,2857.9,2857.5,10.7643]
[1749659250284,0.04,2857.9,2857.8,10.0]
[1749659250754,0.04,2857.9,2857.8,10.55]
[1749659251418,0.04,2859.9,2858.6,10.0]
[1749659251419,0.8011,2859.5,2858.6,10.0]
[1749659251624,0.04,2859.9,2858.9,1.3143]
[1749659251823,0.04,2859.9,2859.8,21.56305222]
[1749659252270,0.04,2859.9,2859.8,22.87735222]
[1749659252439,0.04,2859.9,2859.8,10.9387]
[1749659252639,0.2144,2859.9,2859.0,0.7643]
[1749659252853,0.1744,2859.6,2859.3,10.0]
[1749659253241,0.1744,2859.6,2859.1,11.56305222]
[1749659253567,0.8011,2859.5,2858.6,0.7643]
[1749659253922,0.8011,2859.5,2858.8,10.0]
[1749659255378,0.8011,2859.5,2858.6,0.7643]
[1749659255560,0.8011,2859.5,2858.1,0.55]
[1749659255880,0.8011,2859.5,2858.3,10.55]
[1749659256594,0.8011,2859.5,2858.7,10.0]
[1749659256778,0.8011,2859.5,2858.5,10.34722707]
[1749659256980,0.8011,2859.5,2858.5,0.34722707]
[1749659257187,0.8011,2859.5,2858.4,10.0]
[1749659258554,0.8011,2859.5,2858.1,0.55]
[1749659258959,0.8011,2859.5,2858.4,10.0]
[1749659259194,0.8011,2859.5,2858.7,8.71063998]
[1749659259396,0.04,2859.9,2857.3,10.0]
[1749659259397,0.8057,2859.8,2859.2,10.0]
[1749659260014,0.04,2859.9,2859.5,8.71063962]
[1749659260173,0.04,2859.9,2859.6,10.0]
[1749659260500,0.04,2859.9,2859.8,8.71063998]
[1749659260719,0.04,2859.9,2859.5,9.48803998]
[1749659260863,0.04,2859.9,2859.6,10.0]
[1749659261059,0.04,2859.9,2859.8,0.55]
[1749659261297,0.04,2859.9,2859.7,0.55]
[1749659263192,0.04,2859.9,2859.5,0.7774]
[1749659263399,0.04,2859.9,2859.8,18.88503998]
[1749659263798,0.04,2859.9,2859.8,19.43503998]
[1749659264698,0.04,2859.9,2859.8,10.1744]
[1749659264899,0.04,2859.9,2859.8,10.0]
[1749659265810,0.2144,2859.9,2859.8,10.0]
[1749659266012,0.2144,2859.9,2859.5,0.1744]
[1749659266391,0.2144,2859.9,2859.1,0.8217]
[1749659266697,0.1744,2859.5,2858.7,0.8033]
[1749659266898,0.1744,2859.5,2859.0,0.1744]
[1749659268505,0.1744,2859.3,2858.8,0.1744]
[1749659269471,0.04,2859.9,2859.1,0.55]
[1749659269672,0.1744,2859.7,2859.4,8.71063998]
[1749659269875,0.04,2859.9,2859.5,10.0]
[1749659270136,0.04,2859.9,2859.8,18.71063998]
[1749659270336,0.04,2859.9,2859.8,19.26063998]
[1749659270474,0.04,2859.9,2859.8,19.43503998]
[1749659271145,0.04,2859.9,2859.8,20.25283998]
[1749659271852,1.40473582,2861.2,2860.9,10.0]
[1749659271988,1.40473582,2861.2,2860.5,0.8178]
[1749659272193,0.1744,2861.1,2860.6,0.1744]
[1749659272606,0.9346,2861.1,2859.7,0.7775]
[1749659272809,0.9346,2861.1,2859.9,10.55]
[1749659273147,0.40833358,2861.1,2860.3,10.0]
[1749659273287,0.1744,2861.1,2860.4,0.55]
[1749659273486,0.1744,2861.1,2860.3,10.0]
[1749659273712,1.40473582,2861.2,2860.3,10.34518414]
[1749659274628,0.8191,2861.1,2860.3,10.0]
[1749659274828,0.22238358,2861.0,2860.3,10.0]
[1749659275127,0.22238358,2861.0,2859.9,10.0]
[1749659275914,0.22238358,2861.0,2859.8,8.71063998]
[1749659275915,0.22238358,2861.0,2859.8,9.05281701]
[1749659276119,0.8191,2860.9,2859.9,10.0]
[1749659276292,0.8191,2860.9,2859.7,0.7982]
[1749659276733,0.8191,2860.9,2859.5,10.0]
[1749659277957,0.8191,2860.9,2859.4,10.7982]
[1749659278254,0.8088,2859.8,2857.9,0.7592]
[1749659278414,0.8088,2859.8,2858.8,8.71063998]
[1749659278617,0.8088,2859.8,2859.2,8.71063998]
[1749659278815,0.8088,2859.8,2858.5,0.7592]
[1749659279013,0.8088,2859.8,2858.7,8.71063998]
[1749659279256,0.8088,2859.8,2858.5,0.7592]
[1749659279845,0.8088,2859.8,2858.2,0.7954]
[1749659280047,0.8088,2859.8,2858.3,0.55]
[1749659280568,0.8088,2859.8,2858.2,0.7954]
[1749659280569,0.8088,2859.8,2858.2,10.7954]
[1749659280752,0.8088,2859.8,2858.6,10.0]
[1749659281528,0.8088,2859.8,2859.4,10.0]
[1749659281752,0.7775,2860.5,2859.7,8.71063998]
[1749659281950,0.7775,2860.5,2860.2,10.0]
[1749659282787,0.7775,2860.5,2860.0,0.1744]
[1749659283175,0.7775,2860.5,2859.4,0.7931]
[1749659283371,0.1744,2860.2,2859.7,0.1744]
[1749659283852,0.1744,2859.7,2859.2,0.1744]